Cogmind - Beta 9.3 @@@ ROGUE MODE // 2019.12.31 @ 06:16:26 Player: Trione Result: Destroyed by P-80 Master with Gamma Rifle Performance ------------- Evolutions (8) 4000 Regions Visited (31) 6200 Robots Destroyed (245) 1225 Value Destroyed (13605) 13605 Prototype IDs (46) 920 Alien Tech Used (0) 0 Bonus (11826) 11826 TOTAL SCORE: 37776 Bonus ------- High Alert Combat Kills 758 Follower Combat Kills 4429 Entered Garrisons 2000 Used RIF Installer 5000 Aligned with FarCom 300 Friendly Fire -661 Cogmind --------- Core Integrity 0/1450 Matter 65/550 Energy 38/190 System Corruption 29% Temperature Cool (0) Movement Flying (120) Ox1 Location -2/Testing Parts ------- > --- POWER (1) -------- Light Quantum Reactor > --- PROPULSION (2) --- Impulse Thruster Array > --- UTILITY (18) ----- Matter Compressor Enhanced Optical Array Enhanced Optical Array Experimental Melee Analysis Suite Advanced Core Analyzer Experimental Armor Integrity Analyzer Relay Coupler [C] (5) Relay Coupler [Sentry] (19) Relay Coupler [Specialist] (36) > --- WEAPON (2) ------- Cooled Nova Cannon > --- INVENTORY (4) ---- Mini Smartbomb Launcher Z-bomb Delivery System Advanced Remote Datajack Peak State ------------ > --- POWER ------------ Light Quantum Reactor > --- PROPULSION ------- Biometal Heavy Treads > --- UTILITY ---------- Advanced Heat Sink Superbattery Matter Compressor Enhanced Optical Array Advanced Targeting Computer Advanced Armor Integrity Analyzer Experimental Armor Integrity Analyzer Advanced Transmission Jammer Improved Focal Shield Advanced Force Field Relay Coupler [NC] Relay Coupler [NC] Relay Coupler [C] Relay Coupler [C] Relay Coupler [C] Relay Coupler [Sentry] Relay Coupler [Sentry] Relay Coupler [Specialist] > --- WEAPON ----------- Railgun Advanced Remote Datajack > --- INVENTORY -------- Biometal Heavy Treads Hypervelocity Railgun Mini Smartbomb Launcher [Rating: 149] Favorites ----------- Power Micro Fission Core Engine Improved Ion Engine Power Core Micro Fission Core Reactor Light Particle Reactor Propulsion Light Treads Treads Light Treads Leg Potential Leg Wheel Armored Wheel Flight Unit Impulse Thruster Array Utility Large Storage Unit Device Improved Remote Force Field Storage Large Storage Unit Processor Enhanced Optical Array Hackware Relay Coupler [Sentry] Protection Light Armor Plating Weapon Katana Energy Gun Improved EM Shotgun Energy Cannon Ion Cannon Ballistic Gun Autogun Ballistic Cannon Light Cannon Launcher Long-range Missile Launcher Special Weapon Improved Remote Datajack Slashing Weapon Katana Piercing Weapon Spear Special Melee Weapon Datajack Build | -11 -10 -10 -9 -9 -9 -8 -8 -8 -8 -8 -7 -7 -7 -7 -6 -6 -5 -5 -5 -5 -4 -4 -3 -3 -3 -3 -3 -2 -2 -2 -2 ------- Run | Scr Mat Min Mat Min Exi Min Mat Gar Mat Gar Fac Gar Fac Gar Fac Gar Fac Gar Fac Gar Fac Gar Res Gar Res Arm Lab Res Gar Res Tes Slots Evolved 16 | . . . 2 . . . 2 . . . 2 . . . 2 . 2 . . . 2 . 2 . . . . 2 . . . Power . | . . . . . . . . . . . . . . . . . . . . . . . . . . . . . . . . Propulsion . | . . . . . . . . . . . . . . . . . . . . . . . . . . . . . . . . Utility 16 | . . . 2 . . . 2 . . . 2 . . . 2 . 2 . . . 2 . 2 . . . . 2 . . . Weapon . | . . . . . . . . . . . . . . . . . . . . . . . . . . . . . . . . Parts Attached 438 | 7 9 5 19 3 3 . 5 16 . 4 5 13 16 24 17 18 51 18 5 26 9 16 3 4 44 23 . 9 24 26 16 Power 27 | 1 1 1 3 . . . . . . . . 1 1 . . 1 3 1 . . . . . . 4 1 . 1 2 4 2 Engine 10 | 1 1 1 3 . . . . . . . . . 1 . . 1 2 . . . . . . . . . . . . . . Core 3 | . . . . . . . . . . . . 1 . . . . 1 1 . . . . . . . . . . . . . Reactor 14 | . . . . . . . . . . . . . . . . . . . . . . . . . 4 1 . 1 2 4 2 Propulsion 43 | 2 1 2 6 1 3 . . . . . . . 2 . 1 . 5 . . 2 . . . . 6 3 . . 2 5 2 Treads 20 | . . 2 6 1 . . . . . . . . 1 . . . 2 . . 2 . . . . . 2 . . 2 2 . Leg 2 | . . . . . 2 . . . . . . . . . . . . . . . . . . . . . . . . . . Wheel 15 | 2 1 . . . 1 . . . . . . . 1 . 1 . 3 . . . . . . . 5 1 . . . . . Hover . | . . . . . . . . . . . . . . . . . . . . . . . . . . . . . . . . Flight 6 | . . . . . . . . . . . . . . . . . . . . . . . . . 1 . . . . 3 2 Utility 145 | 2 3 . 3 . . . 3 . . . 2 . 6 7 6 6 16 5 3 11 5 10 3 4 17 7 . 5 13 6 2 Device 33 | . . . . . . . . . . . . . 1 1 . . 8 1 . . 1 2 1 . 7 3 . 4 3 1 . Storage 26 | 2 3 . 1 . . . . . . . 1 . . 3 . 1 2 3 . 3 2 . . . 1 1 . 1 . 2 . Processor 7 | . . . . . . . . . . . . . . . . . 1 . . . . . . . . 1 . . 1 3 1 Hackware 50 | . . . . . . . . . . . . . . 2 2 5 4 1 3 4 2 5 2 3 6 1 . . 9 . 1 Protection 29 | . . . 2 . . . 3 . . . 1 . 5 1 4 . 1 . . 4 . 3 . 1 3 1 . . . . . Artifact . | . . . . . . . . . . . . . . . . . . . . . . . . . . . . . . . . Weapon 223 | 2 4 2 7 2 . . 2 16 . 4 3 12 7 17 10 11 27 12 2 13 4 6 . . 17 12 . 3 7 11 10 Energy Gun 19 | 2 1 . 3 . . . 1 . . . . 2 1 . . . 3 1 . . . . . . 2 . . 2 . . 1 Energy Cannon 32 | . . . . . . . . 1 . . . 2 2 5 1 4 6 2 . 1 1 . . . 1 1 . 1 . 2 2 Ballistic Gun 52 | . 2 1 3 1 . . 1 7 . 2 1 3 2 2 1 . 4 . . 4 . 1 . . 2 4 . . 5 3 3 Ballistic Cannon 22 | . 1 . 1 . . . . . . . . . 1 1 1 1 4 3 . 2 . 1 . . 4 1 . . . . 1 Launcher 38 | . . 1 . 1 . . . 5 . 2 1 4 1 5 2 1 1 4 . 2 . 2 . . . 2 . . . 2 2 Special Weapon 35 | . . . . . . . . . . . . . . 1 3 1 5 1 1 4 2 1 . . 6 3 . . 2 4 1 Impact Weapon . | . . . . . . . . . . . . . . . . . . . . . . . . . . . . . . . . Slashing Weapon 23 | . . . . . . . . 3 . . 1 1 . 3 2 2 4 1 1 . 1 1 . . 2 1 . . . . . Piercing Weapon 1 | . . . . . . . . . . . . . . . . 1 . . . . . . . . . . . . . . . Special Melee Weapon 1 | . . . . . . . . . . . . . . . . 1 . . . . . . . . . . . . . . . Unidentified Prototypes 19 | . . . 3 . . . 1 . . . . . 2 . . . 3 . . . . . . . 2 . . . . 1 7 Parts Lost 100 | . 2 2 2 . . . . . . . . 7 4 4 1 1 7 1 . 1 1 1 . . 19 12 . 4 11 16 4 Power 13 | . . . 1 . . . . . . . . 2 . . . . 1 . . . . . . . 3 1 . 1 1 2 1 Propulsion 13 | . . 2 . . . . . . . . . . . . . . 2 . . 1 . . . . 3 2 . . 1 2 . Utility 47 | . . . . . . . . . . . . 4 2 3 1 . 3 1 . . 1 1 . . 7 6 . 2 6 8 2 Weapon 27 | . 2 . 1 . . . . . . . . 1 2 1 . 1 1 . . . . . . . 6 3 . 1 3 4 1 Highest Loss Streak 12 | . 2 2 2 . . . . . . . . 5 2 1 1 1 3 1 . 1 1 1 . . 9 12 . 4 4 9 4 Average Slot Usage (%) 93 | . 100 100 99 100 99 100 99 100 . 100 99 72 88 90 92 92 97 98 100 99 98 94 95 98 95 86 78 81 84 76 52 Engine 4 | . 14 14 10 11 11 11 9 9 . 9 7 1 3 7 6 6 2 . . . . . . . . . . . . . . Core 1 | . . . . . . . . . . . . 1 . . . . 2 5 5 5 5 5 4 4 . . . . . . . Treads 5 | . . 24 22 22 16 . . . . . . . . . . . . . . 3 10 10 9 9 3 1 4 4 3 3 . Leg 2 | . . . . . 4 22 18 18 . 18 15 15 10 . . . . . . . . . . . . . . . . . . Wheel 4 | . 28 3 . . . . . . . . . . 2 7 5 6 8 11 11 6 . . . . 3 4 . . . . . Device 3 | . . . . . . . . . . . . . 1 6 . . 5 7 5 . 4 4 4 4 6 9 4 12 14 10 . Storage 29 | . 28 28 32 33 33 33 27 27 . 27 29 30 30 36 33 33 32 35 33 34 35 36 33 33 28 27 28 29 16 11 6 Processor 3 | . . . . . . . . . . . . . . . . . 4 5 5 5 5 5 4 4 4 4 9 8 12 12 19 Hackware 14 | . . . . . . . . . . . . . . 8 21 32 24 18 23 23 25 17 23 26 30 21 14 10 23 27 15 Protection 6 | . . . 10 11 11 11 26 27 . 27 30 8 24 8 10 . . . . 4 . 2 4 4 2 1 4 2 . . . Energy Gun 1 | . 13 . 9 1 . . . . . . . 1 . . . . . . . . . . . . . . . 3 . . . Energy Cannon 1 | . . . . . . . . 3 . 6 . 1 3 3 . 5 2 . 2 1 2 . . . . . . . . . . Ballistic Gun 5 | . 7 13 11 20 22 22 17 7 . 11 12 8 4 2 1 . 1 3 . 1 . . . . . 2 . . 3 3 1 Ballistic Cannon 1 | . 7 14 . . . . . . . . . . 1 . 1 . . 1 . . . 1 . . 1 . . . . . . Special Weapon 1 | . . . . . . . . . . . . . . 2 4 2 3 2 4 1 3 4 4 4 2 2 . . 3 2 . Slashing Weapon 1 | . . . . . . . . 2 . . 1 1 3 3 3 2 2 . 2 5 4 3 4 4 3 2 4 4 . . . Naked Turns . | . . . . . . . . . . . . . . . . . . . . . . . . . . . . . . . . Heaviest Build 173 | 16 57 57 80 80 80 80 86 94 89 90 95 93 101 123 124 122 134 135 134 135 149 170 162 162 173 125 115 121 104 61 33 Greatest Support 75 | 32 32 40 40 40 60 60 60 60 60 60 60 60 60 28 28 28 44 24 24 49 49 49 49 49 49 75 75 75 75 75 27 Greatest Overweight (x) 27 | . 2 2 1 1 6 1 1 1 1 1 1 1 3 4 4 4 5 5 5 11 3 3 3 3 27 11 1 1 1 1 1 Average Overweight (x) 2 | . . 1 1 1 1 1 1 1 1 1 1 1 1 3 4 3 4 5 5 4 2 2 3 3 5 3 1 1 . . . Largest Inventory Capacity 42 | 8 18 18 24 24 24 24 24 24 24 24 24 24 24 36 36 36 36 36 36 42 42 42 42 42 42 28 28 28 28 4 4 Average Capacity 28 | 6 10 18 23 24 24 24 24 24 24 24 24 24 24 30 36 36 36 36 36 39 42 42 42 42 33 27 28 28 9 4 4 Most Carried 42 | 8 16 18 24 24 24 24 24 24 24 24 24 24 24 35 36 36 36 36 36 42 41 42 41 42 42 28 28 28 28 4 4 Average Carried 27 | 4 9 16 22 24 23 24 23 23 24 24 23 22 23 28 35 35 35 35 35 38 40 40 40 41 32 26 27 27 9 3 3 Final Capacity 42 | 8 18 18 24 24 24 24 24 24 24 24 24 24 24 36 36 36 36 36 36 42 42 42 42 42 22 28 28 28 4 4 4 Final Carried 42 | 7 15 18 24 24 24 24 24 24 24 24 24 23 23 35 36 36 36 36 36 42 41 42 41 42 22 27 28 28 4 3 3 Class Distribution -------------------- 59% | Botlord-Mutant 26% | Hauler-Mutant 8% | Mutant Dominant Class ---------------- Mutant | -10/Materials Mutant | -10/Mines Hauler-Mutant | -9/Materials Hauler-Mutant | -9/Mines Hauler-Mutant | -9/Exiles Hauler-Mutant | -8/Mines Hauler-Mutant | -8/Materials Hauler-Mutant | -8/Garrison Hauler-Mutant | -8/Materials Scavenger-Mutant | -8/Garrison Hauler-Mutant | -7/Factory Hauler-Mutant | -7/Garrison Hauler-Mutant | -7/Factory Hauler-Mutant | -7/Garrison Botlord-Mutant | -6/Factory Botlord-Mutant | -6/Garrison Botlord-Mutant | -5/Factory Botlord-Mutant | -5/Garrison Botlord-Mutant | -5/Factory Botlord-Mutant | -5/Garrison Botlord-Mutant | -4/Factory Botlord-Mutant | -4/Garrison Botlord-Mutant | -3/Research Botlord-Mutant | -3/Garrison Botlord-Mutant | -3/Research Botlord-Mutant | -3/Armory Botlord-Mutant | -3/Lab Botlord-Mutant | -2/Research Botlord-Mutant | -2/Garrison Botlord-Mutant | -2/Research Hacker-Mutant | -2/Testing Resources | -11 -10 -10 -9 -9 -9 -8 -8 -8 -8 -8 -7 -7 -7 -7 -6 -6 -5 -5 -5 -5 -4 -4 -3 -3 -3 -3 -3 -2 -2 -2 -2 ----------- Run | Scr Mat Min Mat Min Exi Min Mat Gar Mat Gar Fac Gar Fac Gar Fac Gar Fac Gar Fac Gar Fac Gar Res Gar Res Arm Lab Res Gar Res Tes Matter Collected 11064 | 242 256 222 520 94 . 46 124 511 . . 24 185 380 617 257 504 910 537 254 593 123 581 . 127 899 1289 . 262 987 427 93 Remotely . | . . . . . . . . . . . . . . . . . . . . . . . . . . . . . . . . Salvage Created 10589 | 64 391 184 1276 113 . . 237 669 . 166 87 191 347 889 351 447 859 1054 . 116 . 85 . . 886 234 . 650 701 499 93 Parts 539 | 4 28 16 70 10 . . 9 32 . 13 7 6 21 32 18 15 40 37 . 9 . 7 . . 51 12 . 23 38 35 6 Haulers Intercepted 9 | . 1 . 4 . . . 1 . . . . . 1 . . . 1 . . . . . . . 1 . . . . . . Recyclers Shooed 15 | . 1 1 1 . . . . . . . . . . . . . . . . . . . . . 7 . . 3 . 2 . Parts Field Recycled . | . . . . . . . . . . . . . . . . . . . . . . . . . . . . . . . . Retrieved Matter . | . . . . . . . . . . . . . . . . . . . . . . . . . . . . . . . . Parts Self-Destructed . | . . . . . . . . . . . . . . . . . . . . . . . . . . . . . . . . Prevented . | . . . . . . . . . . . . . . . . . . . . . . . . . . . . . . . . Kills | -11 -10 -10 -9 -9 -9 -8 -8 -8 -8 -8 -7 -7 -7 -7 -6 -6 -5 -5 -5 -5 -4 -4 -3 -3 -3 -3 -3 -2 -2 -2 -2 ------- Run | Scr Mat Min Mat Min Exi Min Mat Gar Mat Gar Fac Gar Fac Gar Fac Gar Fac Gar Fac Gar Fac Gar Res Gar Res Arm Lab Res Gar Res Tes Combat Hostiles Destroyed 192 | . 9 5 16 4 . . 3 24 . 9 4 16 6 19 9 10 7 10 . 2 . 4 . . 9 5 . 5 6 8 2 Melee 5 | . . . . . . . . . . . . . 2 1 . . . . . . . . . . 2 . . . . . . Guns 52 | . 6 . 14 2 . . 3 1 . 1 1 . 1 1 . . 1 . . 2 . . . . 3 3 . 2 6 4 1 Cannons 34 | . 3 2 2 . . . . 1 . . . . 3 3 1 5 3 3 . . . . . . 4 . . 1 . 2 1 AOE 93 | . . 3 . 2 . . . 22 . 8 3 15 . 14 8 4 2 4 . . . 4 . . . 2 . . . 2 . Classes Destroyed 16 | 1 7 1 . 2 . . . . . . . 1 1 1 . . 1 1 . . . . . . . . . . . . . Worker 14 | . 1 1 2 . . . . . . . . . 1 . 4 . . . . . . . . . 2 . . 1 . 2 . Builder 6 | . 1 . . . . . . . . . . . . . 2 . 1 . . . . . . . . . . . . 2 . Tunneler 2 | . 1 . . . . . . . . . . . . . . . 1 . . . . . . . . . . . . . . Hauler 9 | . 1 . 4 . . . 1 . . . . . 1 . . . 1 . . . . . . . 1 . . . . . . Recycler 13 | 1 1 1 2 . . . 1 . . . 1 . . . . . 2 . . . . . . . 2 . . 2 . . . Watcher 6 | . 1 . 4 . . . . . . . . . . . . . . . . 1 . . . . . . . . . . . Swarmer 58 | . 6 3 . . . . . 10 . 4 4 11 2 3 . 6 . 1 . 3 . 3 . . . . . . . 2 . Grunt 75 | . 3 . 8 2 . . 3 14 . 5 . 3 1 14 7 2 . 8 . . . . . . . . . . 3 . 2 Brawler 6 | . . . . 1 . . . . . . . 1 1 1 . . 1 1 . . . . . . . . . . . . . Duelist 1 | . . . . . . . . . . . . . . . . . 1 . . . . . . . . . . . . . . Protector 1 | . . . . 1 . . . . . . . . . . . . . . . . . . . . . . . . . . . Sentry 13 | . . 2 8 . . . . . . . . . 1 . . . . . . . . . . . . 1 . 1 . . . Demolisher 2 | . . . . . . . . . . . . 1 . . . . . . . . . . . . . 1 . . . . . Hunter 11 | . . . . . . . . . . . . . . 1 . . 4 . . . . 1 . . 1 1 . 1 2 . . Programmer 26 | . . . . . . . . . . . . . 1 . 2 2 1 . . . . . . . 8 2 . 3 1 6 . Behemoth 2 | . . . . . . . . . . . . . . . . . . 1 . . . . . . . . . . 1 . . Best Kill Streak 8 | 1 5 3 4 3 . . 3 8 . 5 5 8 2 4 8 6 3 4 . 2 . 4 . . 4 3 . 3 4 3 1 Combat Bots Only 8 | . 4 3 3 3 . . 3 8 . 5 4 8 2 4 5 6 2 4 . 2 . 4 . . 4 3 . 2 4 2 1 Max Kills in Single Turn 4 | 1 1 3 3 1 . . 1 4 . 3 4 3 1 3 4 3 1 2 . 1 . 3 . . 2 2 . 1 1 2 1 Gunslinging . | . . . . . . . . . . . . . . . . . . . . . . . . . . . . . . . . Exploded 4 | . . 3 . 1 . . . 4 . 3 3 3 . 3 2 3 1 1 . . . 3 . . . 2 . . . 1 . Melee 1 | . . . . . . . . . . . . . 1 1 . . . . . . . . . . 1 . . . . . . Uniques/NPCs Destroyed . | . . . . . . . . . . . . . . . . . . . . . . . . . . . . . . . . Combat | -11 -10 -10 -9 -9 -9 -8 -8 -8 -8 -8 -7 -7 -7 -7 -6 -6 -5 -5 -5 -5 -4 -4 -3 -3 -3 -3 -3 -2 -2 -2 -2 -------- Run | Scr Mat Min Mat Min Exi Min Mat Gar Mat Gar Fac Gar Fac Gar Fac Gar Fac Gar Fac Gar Fac Gar Res Gar Res Arm Lab Res Gar Res Tes Damage Taken 21240 | . 389 180 834 65 . . 95 190 . 74 101 1032 1124 937 305 500 1297 452 49 444 494 289 . 25 4283 1469 . 1174 1843 2748 847 Core 3890 | . 89 14 86 . . . . 53 . 13 13 93 144 53 15 136 338 57 . 38 92 15 . . 746 427 . 344 223 500 401 Absorbed by Shields 2121 | . . . . . . . . . . . . . . 28 . . 242 310 47 . 184 202 . 25 480 274 . 270 59 . . Reduced by Siege Mode 340 | . . . . . . . . . . . . . . . . . . . . . . . . . . . . 33 207 100 . Core Remaining (%) 68 | 100 . 58 . . . 78 . . . 88 . . . 56 . 82 . . . 56 . 90 . . . . 9 . . . . Volleys Fired 1041 | 2 55 14 72 9 . 2 13 32 . 10 4 43 29 32 20 44 92 57 24 43 10 46 . 8 70 78 . 43 72 59 58 Largest 2 | 2 2 2 2 2 . 2 2 2 . 2 2 2 2 2 2 2 2 2 1 1 1 1 . 1 2 2 . 1 2 2 1 Hottest 188 | 90 90 58 73 73 . 46 46 83 . 51 46 110 140 88 138 150 188 98 98 98 40 61 . 40 126 98 . 120 80 155 50 Shots Fired 1325 | 4 103 27 137 16 . 4 26 38 . 11 6 48 43 40 22 63 98 64 24 43 10 46 . 8 88 86 . 43 103 70 54 Gun 627 | 4 72 13 127 14 . 4 26 14 . 4 4 28 23 12 . . 8 13 . 12 . 1 . . 33 29 . 30 71 44 41 Cannon 318 | . 31 13 10 . . . . 6 . . . 5 19 12 4 51 46 23 4 9 . 6 . . 41 8 . 13 . 7 10 Launcher 113 | . . 1 . 2 . . . 18 . 7 2 15 1 11 6 3 3 23 . 6 . 2 . . . 6 . . . 6 1 Special 267 | . . . . . . . . . . . . . . 5 12 9 41 5 20 16 10 37 . 8 14 43 . . 32 13 2 Kinetic 607 | . 56 26 85 11 . 4 26 14 . 4 4 10 21 15 2 15 20 29 . 18 . 7 . . 49 36 . . 70 44 41 Thermal 218 | 4 47 . . . . . . 6 . . . 5 17 9 2 36 21 6 4 3 . . . . 10 1 . 30 . 7 10 Explosive 81 | . . 1 . 2 . . . 18 . 7 2 15 1 11 6 3 . . . . . 2 . . . 6 . . . 6 1 Electromagnetic 152 | . . . 52 3 . . . . . . . 18 4 . . . 16 24 . 6 . . . . 15 . . 13 1 . . Robot Hit Streak 24 | 3 9 14 12 7 . 9 5 4 . 4 5 8 5 17 8 12 9 18 4 7 10 15 . 9 10 18 . 15 24 13 7 Robot Miss Streak 9 | 1 6 2 5 3 . 1 2 3 . 1 2 9 6 1 2 4 4 2 3 2 . 1 . . 3 4 . 3 2 2 2 Penetration Max 1 | . . . . . . . . . . . . . . . . . . 1 . . . . . . 1 1 . . 1 1 . Secondary Targets 3 | . . . 1 . . . . . . . . . . . . . . . . . . . . . . . . . 2 . . Max Gunslinging Chain 1 | . . . 1 . . . . . . . . . . . . . . . . . . . . . . . . . 1 . . Capacitor 30 | . . . . . . . . . . . . . . . . . . . . . . . . . . . . 30 . . . Shots Hit Robots 898 | 3 57 20 99 9 . 3 15 18 . 5 4 20 30 44 17 42 63 41 14 24 10 40 . 7 76 57 . 34 81 54 11 Core Hits 447 | 2 20 9 46 6 . . 9 41 . 12 6 30 19 35 23 20 16 32 1 12 . 8 . . 27 12 . 9 19 27 6 Critical Hits 63 | . . . 1 . . . . . . . . . . . . 2 3 8 . 3 . 3 . . 9 7 . . 24 3 . Critical Kills 17 | . . . . . . . . . . . . . . . . 2 2 1 . . . . . . 4 2 . . 5 1 . Critical Parts Destroyed 38 | . . . 1 . . . . . . . . . . . . . 1 7 . 3 . . . . 4 4 . . 16 2 . Melee Attacks 190 | . . . . . . . . 8 . . 1 . 5 24 14 10 22 10 7 5 3 3 . . 70 2 . 6 . . . Impact . | . . . . . . . . . . . . . . . . . . . . . . . . . . . . . . . . Slashing 190 | . . . . . . . . 8 . . 1 . 5 24 14 10 22 10 7 5 3 3 . . 70 2 . 6 . . . Piercing . | . . . . . . . . . . . . . . . . . . . . . . . . . . . . . . . . Sneak Attacks 1 | . . . . . . . . . . . . . . . . . . . . . . . . . 1 . . . . . . Combat Hostiles . | . . . . . . . . . . . . . . . . . . . . . . . . . . . . . . . . Follow-up Attacks . | . . . . . . . . . . . . . . . . . . . . . . . . . . . . . . . . Damage Inflicted 30520 | 47 822 405 1813 304 . 46 265 3049 . 894 381 2037 849 2724 1610 1787 1579 2300 98 639 . 512 . . 2402 776 . 1345 451 2624 761 Guns 7026 | 47 522 145 1512 131 . 46 265 50 . 12 33 254 186 108 . . 62 141 . 143 . . . . 603 211 . 735 451 1241 128 Cannons 6078 | . 300 156 105 . . . . 92 . . . 86 287 230 75 799 1068 301 98 88 . 77 . . 1143 51 . 610 . 259 253 Explosions 13572 | . . 104 196 173 . . . 2382 . 882 348 1697 66 1419 1535 349 449 1147 . 372 . 435 . . . 514 . . . 1124 380 Melee 3662 | . . . . . . . . 525 . . . . 160 967 . 639 . 711 . 36 . . . . 624 . . . . . . Ramming 182 | . . . . . . . . . . . . . 150 . . . . . . . . . . . 32 . . . . . . Kinetic 7062 | . 476 301 771 131 . 46 265 50 . 12 33 117 179 175 37 208 374 294 . 200 . 77 . . 1234 262 . . 451 1241 128 Thermal 4712 | 47 346 . 196 . . . . 92 . . . 86 261 163 38 591 725 132 98 108 . . . . 281 . . 1036 . 259 253 Explosive 11408 | . . 104 . 173 . . . 2382 . 882 348 1697 66 1419 1535 349 . . . . . 435 . . . 514 . . . 1124 380 Electromagnetic 3494 | . . . 846 . . . . . . . . 137 33 . . . 480 1163 . 295 . . . . 231 . . 309 . . . Impact . | . . . . . . . . . . . . . . . . . . . . . . . . . . . . . . . . Slashing 3662 | . . . . . . . . 525 . . . . 160 967 . 639 . 711 . 36 . . . . 624 . . . . . . Piercing . | . . . . . . . . . . . . . . . . . . . . . . . . . . . . . . . . Highest Corruption 32 | . . . . . . . . . . . . . 4 3 . 3 4 6 3 3 3 3 . . 27 32 32 13 15 25 29 Average Corruption 9 | . . . . . . . . . . . . . 3 1 . 2 3 4 3 3 2 3 . . 14 30 32 11 14 20 26 Corruption Purged 7 | . . . . . . . . . . . . . 1 3 . . . 3 . . . . . . . . . . . . . Effects 495 | . . . . . . . . . . . . . 12 1 . 19 22 21 8 30 . 19 . . 61 90 1 17 89 64 41 Message Errors 90 | . . . . . . . . . . . . . 4 . . 4 6 7 2 8 . 5 . . 10 14 1 1 16 9 3 Matter Fused 85 | . . . . . . . . . . . . . 3 . . 3 7 5 3 8 . 6 . . 12 14 . 2 9 8 5 Heat Flow Errors 40 | . . . . . . . . . . . . . . . . 3 4 4 1 4 . 1 . . 4 6 . 2 2 7 2 Energy Discharges 58 | . . . . . . . . . . . . . . . . 2 2 1 2 6 . 4 . . 8 10 . 3 9 9 2 Parts Rejected 8 | . . . . . . . . . . . . . . . . . . . . . . . . . 1 2 . . 1 3 1 Data Loss (minor) 37 | . . . . . . . . . . . . . 2 1 . 5 1 2 . 3 . 2 . . 6 3 . 1 6 1 4 Data Loss (major) 7 | . . . . . . . . . . . . . . . . . . 1 . . . . . . 1 2 . 1 2 . . Misfires 4 | . . . . . . . . . . . . . . . . . . . . . . . . . 1 1 . . 1 1 . Alerts 4 | . . . . . . . . . . . . . . . . . . . . . . . . . 1 . . . 2 1 . Misdirections 58 | . . . . . . . . . . . . . . . . . . . . . . . . . 6 19 . 1 13 10 9 Targeting Errors 90 | . . . . . . . . . . . . . 3 . . 1 2 1 . 1 . 1 . . 11 17 . 6 25 11 11 Weapon Failures 14 | . . . . . . . . . . . . . . . . 1 . . . . . . . . . 2 . . 3 4 4 Overload Shots . | . . . . . . . . . . . . . . . . . . . . . . . . . . . . . . . . Overflow Damage 1208 | . 7 3 13 14 . . . 72 . 80 1 161 58 66 34 87 74 2 . 45 . . . . 136 19 . 164 . 44 128 Projectiles 388 | . 7 3 . . . . . . . . . . . . . 39 74 . . 23 . . . . 38 . . 164 . 22 18 Explosions 568 | . . . 13 14 . . . 49 . 80 1 161 41 . 34 . . 2 . 22 . . . . . 19 . . . 22 110 Melee 252 | . . . . . . . . 23 . . . . 17 66 . 48 . . . . . . . . 98 . . . . . . Knockbacks 23 | . 5 . 5 . . . . . . . . . . 1 . . 6 3 . 1 . . . . 2 . . . . . . Impact . | . . . . . . . . . . . . . . . . . . . . . . . . . . . . . . . . Kinetic 21 | . 5 . 3 . . . . . . . . . . 1 . . 6 3 . 1 . . . . 2 . . . . . . Secondary 2 | . . . 2 . . . . . . . . . . . . . . . . . . . . . . . . . . . . Self-Inflicted Damage 173 | . . . 31 . . . . 12 . 13 . 43 46 . . . 6 6 . . . . . . 16 . . . . . . Shots 6 | . . . 1 . . . . 1 . 1 . 1 . . . . 1 1 . . . . . . . . . . . . . Rammed 16 | . . . . . . . . . . . . . 14 . . . . . . . . . . . 2 . . . . . . Targets Rammed 23 | . . . . . . . . . . . . . 21 . . . . . . . . . . . 2 . . . . . . Kicked 7 | . . . . . . . . . . . . . 7 . . . . . . . . . . . . . . . . . . Crushed . | . . . . . . . . . . . . . . . . . . . . . . . . . . . . . . . . Highest Temperature 784 | 30 230 43 300 76 . 8 90 152 . 48 36 365 408 36 96 192 328 196 144 271 10 228 . 12 250 240 . 784 186 198 181 Average Temperature 82 | 17 90 20 55 33 . 6 34 46 . 18 21 206 128 10 43 51 105 67 41 68 6 34 . 6 76 64 . 278 69 57 77 Received Heat Transfer 2119 | . 63 54 351 36 . . 54 99 . 27 . 27 168 150 99 111 56 127 8 135 4 21 . . 35 . . 18 251 54 171 Effects 29 | . . . 1 . . . . . . . . 5 2 . . . 2 . . . . . . . . 2 . 17 . . . Shutdowns 3 | . . . . . . . . . . . . 1 . . . . . . . . . . . . . . . 2 . . . Energy Bleed 6 | . . . 1 . . . . . . . . 2 . . . . . . . . . . . . . 1 . 2 . . . Interference 11 | . . . . . . . . . . . . 2 2 . . . 2 . . . . . . . . 1 . 4 . . . Matter Decay 2 | . . . . . . . . . . . . . . . . . . . . . . . . . . . . 2 . . . Short Circuit 1 | . . . . . . . . . . . . . . . . . . . . . . . . . . . . 1 . . . Damage (minor) 2 | . . . . . . . . . . . . . . . . . . . . . . . . . . . . 2 . . . Damage (major) 3 | . . . . . . . . . . . . . . . . . . . . . . . . . . . . 3 . . . Damage (core) 1 | . . . . . . . . . . . . . . . . . . . . . . . . . . . . 1 . . . Siege Activations 6 | . . . . . . . . . . . . . . . . . . . . . . . . . . . . 2 2 2 . Total Turns 158 | . . . . . . . . . . . . . . . . . . . . . . . . . . . . 13 88 57 . Longest Duration 63 | . . . . . . . . . . . . . . . . . . . . . . . . . . . . 8 63 37 . Robots Corrupted 7 | . . . . . . . . . . . . 1 . . . . 1 3 . . . . . . . . . 2 . . . Combat Hostiles 6 | . . . . . . . . . . . . 1 . . . . 1 3 . . . . . . . . . 1 . . . Parts Fried 14 | . . . 2 . . . . . . . . 1 . . . . 3 4 . . . . . . . . . 4 . . . Impact Corruptions 1 | . . . . . . . . . . . . . . . . . . . . . . . . . 1 . . . . . . Robots Melted 2 | . . . . . . . . . . . . . . . . 1 . . . . . . . . . . . 1 . . . Combat Hostiles 2 | . . . . . . . . . . . . . . . . 1 . . . . . . . . . . . 1 . . . Parts Melted 22 | . 4 . 1 . . . . 1 . . . . . . . 4 1 3 . . . . . . 4 . . 1 . 3 . Heat Transferred 5909 | 124 917 . 300 . . . . 148 . . . 90 487 259 50 807 609 136 150 150 . . . . 350 . . 925 . 185 222 Parts Sabotaged . | . . . . . . . . . . . . . . . . . . . . . . . . . . . . . . . . Parts Stolen . | . . . . . . . . . . . . . . . . . . . . . . . . . . . . . . . . Parts Stripped . | . . . . . . . . . . . . . . . . . . . . . . . . . . . . . . . . Power Chain Reactions 6 | . . . 4 . . . . . . . . . . . . . 1 . . 1 . . . . . . . . . . . Missiles Intercepted . | . . . . . . . . . . . . . . . . . . . . . . . . . . . . . . . . Alert | -11 -10 -10 -9 -9 -9 -8 -8 -8 -8 -8 -7 -7 -7 -7 -6 -6 -5 -5 -5 -5 -4 -4 -3 -3 -3 -3 -3 -2 -2 -2 -2 ------- Run | Scr Mat Min Mat Min Exi Min Mat Gar Mat Gar Fac Gar Fac Gar Fac Gar Fac Gar Fac Gar Fac Gar Res Gar Res Arm Lab Res Gar Res Tes Peak Influence 895 | 5 216 115 275 182 . 60 68 818 398 485 373 631 413 822 657 895 649 631 415 875 576 674 447 680 459 299 . 73 229 276 149 Average Influence 305 | 2 103 39 164 73 . 36 23 458 398 363 341 468 325 599 537 735 341 425 248 540 445 391 384 559 264 127 . 20 108 124 70 Maximum Alert Level 3 | . 1 . 1 . . . . 3 1 2 1 2 2 3 2 3 2 2 2 3 2 2 2 2 2 1 . . 1 1 . Low Security (%) 41 | 100 97 100 54 100 . 100 100 26 . . . . 1 4 . . 40 13 28 5 . 8 . . 29 79 . 100 92 76 100 Level 1 24 | . 2 . 45 . . . . 12 100 66 100 36 98 12 . 3 3 29 66 23 18 29 86 17 55 20 . . 7 23 . Level 2 25 | . . . . . . . . 42 . 33 . 63 . 47 100 20 55 57 5 35 81 61 13 82 14 . . . . . . Level 3 8 | . . . . . . . . 18 . . . . . 35 . 76 . . . 35 . . . . . . . . . . . Level 4 . | . . . . . . . . . . . . . . . . . . . . . . . . . . . . . . . . Level 5 . | . . . . . . . . . . . . . . . . . . . . . . . . . . . . . . . . High Security . | . . . . . . . . . . . . . . . . . . . . . . . . . . . . . . . . Max Security . | . . . . . . . . . . . . . . . . . . . . . . . . . . . . . . . . Squads Dispatched 32 | . 2 . 1 1 . . . . . . . . 2 . 4 . 8 . 1 . . . 1 . 3 2 . 1 . 3 3 Investigation 3 | . 1 . . . . . . . . . . . . . . . 2 . . . . . . . . . . . . . . Extermination 13 | . . . . . . . . . . . . . 2 . 1 . 2 . . . . . . . 3 1 . 1 . 2 1 Reinforcement 12 | . 1 . 1 . . . . . . . . . . . 2 . 3 . 1 . . . . . . 1 . . . 1 2 Assault 3 | . . . . 1 . . . . . . . . . . 1 . 1 . . . . . . . . . . . . . . Garrison 1 | . . . . . . . . . . . . . . . . . . . . . . . 1 . . . . . . . . Intercept . | . . . . . . . . . . . . . . . . . . . . . . . . . . . . . . . . Construction Impeded 4 | . . . . . . . . . . . . . . . 2 . 2 . . . . . . . . . . . . . . Haulers Reinforced . | . . . . . . . . . . . . . . . . . . . . . . . . . . . . . . . . Alert ID Control Effect 11 | . . . . . . . . . . . . . . . . . . . . . . . . . . . . . 4 7 . Stealth | -11 -10 -10 -9 -9 -9 -8 -8 -8 -8 -8 -7 -7 -7 -7 -6 -6 -5 -5 -5 -5 -4 -4 -3 -3 -3 -3 -3 -2 -2 -2 -2 --------- Run | Scr Mat Min Mat Min Exi Min Mat Gar Mat Gar Fac Gar Fac Gar Fac Gar Fac Gar Fac Gar Fac Gar Res Gar Res Arm Lab Res Gar Res Tes Distress Signals 23 | . 1 1 4 . . . . . . . . 1 . . . . . . 1 . 2 . 1 . 3 4 . . . 5 . Communications Jammed 223 | . . . . . . . . . . . . . . . . . . . . . . . 10 . 1 73 . . . 139 . Distress Signals 223 | . . . . . . . . . . . . . . . . . . . . . . . 10 . 1 73 . . . 139 . Times Spotted 469 | . 17 5 29 6 . 1 5 18 . 4 4 20 10 19 15 12 47 22 13 24 14 27 2 11 33 32 . 5 23 39 12 Peak Tracking Total 9 | . 4 3 4 3 . 1 3 5 . 2 4 9 3 5 5 4 8 6 4 4 4 7 2 4 6 7 . 4 3 7 4 Tactical Retreats 32 | . 2 . 1 . . . . 5 . . . 2 1 . . 2 7 4 . 1 1 . . . 2 . . . . 3 1 Traps | -11 -10 -10 -9 -9 -9 -8 -8 -8 -8 -8 -7 -7 -7 -7 -6 -6 -5 -5 -5 -5 -4 -4 -3 -3 -3 -3 -3 -2 -2 -2 -2 ------- Run | Scr Mat Min Mat Min Exi Min Mat Gar Mat Gar Fac Gar Fac Gar Fac Gar Fac Gar Fac Gar Fac Gar Res Gar Res Arm Lab Res Gar Res Tes Traps Triggered 52 | . 2 . . . . . . . . 2 . 4 . 11 3 7 2 5 . 5 . 5 . 1 . 2 . . 2 . 1 Indirectly 3 | . . . . . . . . . . . . . . . . . . 3 . . . . . . . . . . . . . Trap Hack Attempts . | . . . . . . . . . . . . . . . . . . . . . . . . . . . . . . . . Triggered . | . . . . . . . . . . . . . . . . . . . . . . . . . . . . . . . . Disarmed . | . . . . . . . . . . . . . . . . . . . . . . . . . . . . . . . . Reprogrammed . | . . . . . . . . . . . . . . . . . . . . . . . . . . . . . . . . Reused . | . . . . . . . . . . . . . . . . . . . . . . . . . . . . . . . . Traps Extracted . | . . . . . . . . . . . . . . . . . . . . . . . . . . . . . . . . Installed . | . . . . . . . . . . . . . . . . . . . . . . . . . . . . . . . . Triggered . | . . . . . . . . . . . . . . . . . . . . . . . . . . . . . . . . Exploded 1 | . . . . . 1 . . . . . . . . . . . . . . . . . . . . . . . . . . Machines | -11 -10 -10 -9 -9 -9 -8 -8 -8 -8 -8 -7 -7 -7 -7 -6 -6 -5 -5 -5 -5 -4 -4 -3 -3 -3 -3 -3 -2 -2 -2 -2 ---------- Run | Scr Mat Min Mat Min Exi Min Mat Gar Mat Gar Fac Gar Fac Gar Fac Gar Fac Gar Fac Gar Fac Gar Res Gar Res Arm Lab Res Gar Res Tes Machines Disabled 58 | . 1 . 5 . . . . 3 . 1 . . 3 4 . 6 . 2 3 7 . 4 . . . 10 . . 4 1 4 Max in Single Turn 2 | . 1 . 2 . . . . 1 . 1 . . 1 1 . 1 . 1 . 1 . 1 . . . 1 . . 1 1 1 Garrison Access 1 | . . . . . . . . . . . . . . . . . 1 . . . . . . . . . . . . . . Garrison Relay 22 | . . . . . . . . 2 . . . . . 3 . 3 . 2 . 4 . 3 . 1 . . . . 4 . . Energy Cycler 1 | . . . . . . . . . . . . . . . . . . . . . . . . . . 1 . . . . . Machines Sabotaged . | . . . . . . . . . . . . . . . . . . . . . . . . . . . . . . . . Garrisons Compromised . | . . . . . . . . . . . . . . . . . . . . . . . . . . . . . . . . Overloaded Fab Kills . | . . . . . . . . . . . . . . . . . . . . . . . . . . . . . . . . Fab Network Shutdowns . | . . . . . . . . . . . . . . . . . . . . . . . . . . . . . . . . Hacking | -11 -10 -10 -9 -9 -9 -8 -8 -8 -8 -8 -7 -7 -7 -7 -6 -6 -5 -5 -5 -5 -4 -4 -3 -3 -3 -3 -3 -2 -2 -2 -2 --------- Run | Scr Mat Min Mat Min Exi Min Mat Gar Mat Gar Fac Gar Fac Gar Fac Gar Fac Gar Fac Gar Fac Gar Res Gar Res Arm Lab Res Gar Res Tes Machines Accessed 49 | . 6 . 9 1 1 . 3 . 1 . 1 . 2 . 4 . 5 . 4 . 2 . 2 . 1 3 . 3 . 1 . Terminals 30 | . 4 . 8 1 . . 2 . . . . . 1 . 2 . 3 . 2 . 1 . 1 . 1 2 . 1 . 1 . Fabricators 2 | . . . . . . . . . . . . . . . . . 1 . . . . . . . . 1 . . . . . Repair Stations 1 | . . . . . . . . . . . . . . . 1 . . . . . . . . . . . . . . . . Recycling Units 5 | . 2 . 1 . . . . . . . . . . . . . . . 1 . . . . . . . . 1 . . . Scanalyzers . | . . . . . . . . . . . . . . . . . . . . . . . . . . . . . . . . Garrison Access 10 | . . . . . . . 1 . 1 . 1 . 1 . 1 . 1 . 1 . 1 . 1 . . . . 1 . . . Total Hacks 106 | . 13 . 22 2 1 . 11 . 1 . 2 . 3 . 12 . 10 . 9 . 3 . 5 . 1 6 . 4 . 1 . Successful 56 | . 7 . 13 1 1 . 8 . 1 . 1 . 3 . 5 . 3 . 4 . 2 . 2 . 1 1 . 3 . . . Failed 50 | . 6 . 9 1 . . 3 . . . 1 . . . 7 . 7 . 5 . 1 . 3 . . 5 . 1 . 1 . Catastrophic 11 | . 2 . . . . . . . . . . . . . 1 . 3 . 1 . 1 . 1 . . . . 1 . 1 . Database Lockouts . | . . . . . . . . . . . . . . . . . . . . . . . . . . . . . . . . Manual 71 | . 9 . 18 2 1 . 10 . . . 1 . 2 . 4 . 6 . 7 . 2 . 4 . 1 . 2 1 . 1 . Terminals 75 | . 10 . 20 2 . . 10 . . . . . 2 . 7 . 7 . 7 . 2 . 1 . 1 4 . 1 . 1 . Fabricators 3 | . . . . . . . . . . . . . . . . . 1 . . . . . . . . 2 . . . . . Repair Stations 4 | . . . . . . . . . . . . . . . 4 . . . . . . . . . . . . . . . . Recycling Units 8 | . 3 . 2 . . . . . . . . . . . . . . . 1 . . . . . . . . 2 . . . Scanalyzers . | . . . . . . . . . . . . . . . . . . . . . . . . . . . . . . . . Garrison Access 15 | . . . . . . . 1 . 1 . 2 . 1 . 1 . 2 . 1 . 1 . 4 . . . . 1 . . . Terminal Hacks 18 | . 2 . 6 1 1 . 3 . . . . . . . 1 . . . 2 . . . . . 1 1 . . . . . Part Schematic 2 | . . . 2 . . . . . . . . . . . . . . . . . . . . . . . . . . . . Robot Analysis 1 | . . . 1 . . . . . . . . . . . . . . . . . . . . . . . . . . . . Open Door 1 | . . . . . . . . . . . . . . . . . . . . . . . . . . 1 . . . . . Branch Access Points 2 | . . . . . . . . . . . . . . . 1 . . . . . . . . . 1 . . . . . . Terminal Index 2 | . . . 1 . . . 1 . . . . . . . . . . . . . . . . . . . . . . . . Scanalyzer Index 1 | . . . . . . . 1 . . . . . . . . . . . . . . . . . . . . . . . . Unreport Threat 2 | . . . . . . . . . . . . . . . . . . . 2 . . . . . . . . . . . . Locate Traps 1 | . 1 . . . . . . . . . . . . . . . . . . . . . . . . . . . . . . Zone Layout 5 | . 1 . 2 1 . . 1 . . . . . . . . . . . . . . . . . . . . . . . . EX-Prototype ID Bank 1 | . . . . . 1 . . . . . . . . . . . . . . . . . . . . . . . . . . Fabricator Hacks 1 | . . . . . . . . . . . . . . . . . 1 . . . . . . . . . . . . . . Build 1 | . . . . . . . . . . . . . . . . . 1 . . . . . . . . . . . . . . Repair Station Hacks 2 | . . . . . . . . . . . . . . . 2 . . . . . . . . . . . . . . . . Scan Component 1 | . . . . . . . . . . . . . . . 1 . . . . . . . . . . . . . . . . Repair 1 | . . . . . . . . . . . . . . . 1 . . . . . . . . . . . . . . . . Recycling Unit Hacks 5 | . 2 . 1 . . . . . . . . . . . . . . . . . . . . . . . . 2 . . . Retrieve Components 5 | . 2 . 1 . . . . . . . . . . . . . . . . . . . . . . . . 2 . . . Scanalyzer . | . . . . . . . . . . . . . . . . . . . . . . . . . . . . . . . . Garrison Access Hacks 10 | . . . . . . . 1 . 1 . 1 . 1 . 1 . 1 . 1 . 1 . 1 . . . . 1 . . . Unlock Access 10 | . . . . . . . 1 . 1 . 1 . 1 . 1 . 1 . 1 . 1 . 1 . . . . 1 . . . Unauthorized Hacks 53 | . 10 . 12 . . . 9 . . . 1 . 4 . 3 . 5 . 2 . 2 . 5 . . . . . . . . Terminals 18 | . 3 . 5 . . . 4 . . . . . 2 . 1 . 1 . 1 . 1 . . . . . . . . . . Track 9 | . 3 . 2 . . . 2 . . . . . 1 . 1 . . . . . . . . . . . . . . . . Botnet 8 | . . . 3 . . . 1 . . . . . 1 . . . 1 . 1 . 1 . . . . . . . . . . Disrupt 1 | . . . . . . . 1 . . . . . . . . . . . . . . . . . . . . . . . . Fabricators . | . . . . . . . . . . . . . . . . . . . . . . . . . . . . . . . . Repair Stations . | . . . . . . . . . . . . . . . . . . . . . . . . . . . . . . . . Recycling Units . | . . . . . . . . . . . . . . . . . . . . . . . . . . . . . . . . Scanalyzers . | . . . . . . . . . . . . . . . . . . . . . . . . . . . . . . . . Garrison Access 1 | . . . . . . . . . . . . . . . . . . . . . . . 1 . . . . . . . . Reprogram 1 | . . . . . . . . . . . . . . . . . . . . . . . 1 . . . . . . . . Data Cores Recovered . | . . . . . . . . . . . . . . . . . . . . . . . . . . . . . . . . Used . | . . . . . . . . . . . . . . . . . . . . . . . . . . . . . . . . Hacking Detections 38 | . 5 . 6 1 . . 2 . 1 . 1 . 2 . 3 . 5 . 3 . 2 . 2 . . 3 . 2 . . . Full Trace Events 3 | . . . 1 . . . . . . . . . . . . . 2 . . . . . . . . . . . . . . Feedback Events . | . . . . . . . . . . . . . . . . . . . . . . . . . . . . . . . . Feedback Blocked . | . . . . . . . . . . . . . . . . . . . . . . . . . . . . . . . . Robot Schematics Acquired . | . . . . . . . . . . . . . . . . . . . . . . . . . . . . . . . . Robots Built . | . . . . . . . . . . . . . . . . . . . . . . . . . . . . . . . . Matter . | . . . . . . . . . . . . . . . . . . . . . . . . . . . . . . . . Time . | . . . . . . . . . . . . . . . . . . . . . . . . . . . . . . . . Total Robot Build Rating . | . . . . . . . . . . . . . . . . . . . . . . . . . . . . . . . . Part Schematics Acquired 2 | . . . 2 . . . . . . . . . . . . . . . . . . . . . . . . . . . . Parts Built 2 | . . . . . . . . . . . . . . . . . 2 . . . . . . . . . . . . . . Matter 256 | . . . . . . . . . . . . . . . . . 256 . . . . . . . . . . . . . . Time 64 | . . . . . . . . . . . . . . . . . 64 . . . . . . . . . . . . . . Total Part Build Rating 16 | . . . . . . . . . . . . . . . . . 16 . . . . . . . . . . . . . . Parts Repaired 1 | . . . . . . . . . . . . . . . 1 . . . . . . . . . . . . . . . . Time 22 | . . . . . . . . . . . . . . . 22 . . . . . . . . . . . . . . . . Parts Recycled . | . . . . . . . . . . . . . . . . . . . . . . . . . . . . . . . . Recycled Matter . | . . . . . . . . . . . . . . . . . . . . . . . . . . . . . . . . Retrieved Matter . | . . . . . . . . . . . . . . . . . . . . . . . . . . . . . . . . Retrieved Components 13 | . 9 . 2 . . . . . . . . . . . . . . . . . . . . . . . . 2 . . . Parts Scanalyzed . | . . . . . . . . . . . . . . . . . . . . . . . . . . . . . . . . Part Schematics Acquired . | . . . . . . . . . . . . . . . . . . . . . . . . . . . . . . . . Parts Damaged . | . . . . . . . . . . . . . . . . . . . . . . . . . . . . . . . . Bothacking | -11 -10 -10 -9 -9 -9 -8 -8 -8 -8 -8 -7 -7 -7 -7 -6 -6 -5 -5 -5 -5 -4 -4 -3 -3 -3 -3 -3 -2 -2 -2 -2 ------------ Run | Scr Mat Min Mat Min Exi Min Mat Gar Mat Gar Fac Gar Fac Gar Fac Gar Fac Gar Fac Gar Fac Gar Res Gar Res Arm Lab Res Gar Res Tes Used RIF Installer 10 | . . . . . . . . 1 . 1 . 1 . 1 . 1 . 1 . 1 . 1 . 1 . . . . 1 . . Coupler Efficiency 2 | . . . . . . . . . . 1 . . . 1 . . . . . . . . . . . . . . . . . Robot Detection 1 | . . . . . . . . . . . . 1 . . . . . . . . . . . . . . . . . . . Patrol Navigation 1 | . . . . . . . . . . . . . . . . . . 1 . . . . . . . . . . . . . Alert ID Control 1 | . . . . . . . . . . . . . . . . . . . . . . . . . . . . . 1 . . Structural Interface 1 | . . . . . . . . . . . . . . . . . . . . 1 . . . . . . . . . . . Program Shield 1 | . . . . . . . . . . . . . . . . 1 . . . . . . . . . . . . . . . Autooverride 1 | . . . . . . . . . . . . . . . . . . . . . . . . 1 . . . . . . . Crosswire 1 | . . . . . . . . . . . . . . . . . . . . . . 1 . . . . . . . . . Robots Hacked 130 | . . . . . . . . . . . . . . 2 5 5 15 2 7 7 6 17 . 6 8 19 . 1 18 12 . Non-combat 15 | . . . . . . . . . . . . . . . 2 . 5 . 2 . 1 . . . 2 1 . . . 2 . Combat 115 | . . . . . . . . . . . . . . 2 3 5 10 2 5 7 5 17 . 6 6 18 . 1 18 10 . Autooverrided 16 | . . . . . . . . . . . . . . . . . . . . . . . . 2 1 4 . 1 3 5 . Robot Hacks Applied 120 | . . . . . . . . . . . . . . 2 5 5 19 2 8 7 6 18 . 4 7 15 . . 15 7 . find_chute 2 | . . . . . . . . . . . . . . . 1 . . . . . 1 . . . . . . . . . . find_fabricator 1 | . . . . . . . . . . . . . . . 1 . . . . . . . . . . . . . . . . drop_inventory 6 | . . . . . . . . . . . . . . . . . 3 . . . . . . . 2 . . . . 1 . ignore_parts 1 | . . . . . . . . . . . . . . . . . . . 1 . . . . . . . . . . . . check_alert 1 | . . . . . . . . . . . . . . . . . 1 . . . . . . . . . . . . . . purge_threat 2 | . . . . . . . . . . . . . . . . . 2 . . . . . . . . . . . . . . map_route 3 | . . . . . . . . . . . . . . . . . 1 . 1 . . . . . . . . . . 1 . find_garrison 4 | . . . . . . . . . . . . . . . . . 2 . 1 . 1 . . . . . . . . . . overload_power 3 | . . . . . . . . . . . . . . . . . . . . . . . . . . 2 . . 1 . . reboot_system 2 | . . . . . . . . . . . . . . . . . . . . . . 2 . . . . . . . . . go_dormant 1 | . . . . . . . . . . . . . . . . . . . . . . 1 . . . . . . . . . overwrite_iff 4 | . . . . . . . . . . . . . . . 1 1 . . . . . . . . . . . . 1 1 . formatsys_high 90 | . . . . . . . . . . . . . . 2 2 4 10 2 5 7 4 15 . 4 5 13 . . 13 4 . Relay Couplers Released 93 | . . . . . . . . 8 . . . . . 14 . 11 2 8 . 17 . 14 . 3 . . . . 16 . . Machine Destruction 93 | . . . . . . . . 8 . . . . . 14 . 11 2 8 . 17 . 14 . 3 . . . . 16 . . Attached 49 | . . . . . . . . . . . . . . 2 2 5 4 1 3 4 2 5 2 3 6 1 . . 9 . . Crosswired 15 | . . . . . . . . . . . . . . . . . . . . . . 10 . 2 . . . . 3 . . Robots Rewired 4 | . . . . . . . . . . . . . . . . . . . . . . . . . . 4 . . . . . Allies Hacked 1 | . . . . . . . . . . . . . . . . . . . . . . . . . . . . 1 . . . Hacks Repelled . | . . . . . . . . . . . . . . . . . . . . . . . . . . . . . . . . Allies | -11 -10 -10 -9 -9 -9 -8 -8 -8 -8 -8 -7 -7 -7 -7 -6 -6 -5 -5 -5 -5 -4 -4 -3 -3 -3 -3 -3 -2 -2 -2 -2 -------- Run | Scr Mat Min Mat Min Exi Min Mat Gar Mat Gar Fac Gar Fac Gar Fac Gar Fac Gar Fac Gar Fac Gar Res Gar Res Arm Lab Res Gar Res Tes Total Allies 120 | . . . . 5 . . . . . . . . . 2 3 5 10 2 5 7 4 15 1 6 6 21 . 1 17 10 . Largest Group 13 | . . . . 5 5 4 3 . . . . . . 2 2 3 4 2 4 7 6 10 10 13 11 5 2 2 6 5 . Highest-Rated Group 634 | . . . . 102 102 71 63 . . . . . . 64 64 90 139 96 85 287 282 426 478 634 555 264 104 104 354 302 . Highest-Rated Ally 64 | . . . . 31 31 31 31 . . . . . . 32 32 32 49 49 49 49 58 56 64 64 64 64 53 53 64 64 . Total Orders 41 | . . . . . . . . . . . . . . . . 4 1 3 . 16 1 6 . 2 1 2 . 2 2 1 . STAY 12 | . . . . . . . . . . . . . . . . 1 . . . 6 . 3 . 1 . 1 . . . . . GOTO 9 | . . . . . . . . . . . . . . . . 1 . 2 . 1 1 . . . 1 1 . 1 . 1 . FOLLOW 19 | . . . . . . . . . . . . . . . . 2 . 1 . 9 . 3 . 1 . . . 1 2 . . EXPLORE 1 | . . . . . . . . . . . . . . . . . 1 . . . . . . . . . . . . . . Ally Attacks 855 | . . . . 20 . 10 18 . . . . . . 3 22 11 109 43 40 102 44 56 19 51 86 97 . 2 59 63 . Total Damage 24575 | . . . . 339 . 110 190 . . . . . . 199 665 219 2271 1249 629 2915 1282 1774 408 2042 3029 2977 . 60 2058 2159 . Kills 121 | . . . . 4 . 3 . . . . . . . 1 3 2 14 7 6 22 5 8 1 8 12 12 . . 6 7 . Allies Corrupted 2 | . . . . . . . . . . . . . . . . . . . . . . . . . 2 . . . . . . Allies Melted 2 | . . . . . . . . . . . . . . . . . 2 . . . . . . . . . . . . . . Intel | -11 -10 -10 -9 -9 -9 -8 -8 -8 -8 -8 -7 -7 -7 -7 -6 -6 -5 -5 -5 -5 -4 -4 -3 -3 -3 -3 -3 -2 -2 -2 -2 ------- Run | Scr Mat Min Mat Min Exi Min Mat Gar Mat Gar Fac Gar Fac Gar Fac Gar Fac Gar Fac Gar Fac Gar Res Gar Res Arm Lab Res Gar Res Tes Robot Analysis Total 1 | . . . 1 . . . . . . . . . . . . . . . . . . . . . . . . . . . . Derelict Logs Recovered 1 | . . 1 . . . . . . . . . . . . . . . . . . . . . . . . . . . . . Drone Launches 2 | . . . . . . . . . . . . . . . . . 2 . . . . . . . . . . . . . . Drone Recoveries . | . . . . . . . . . . . . . . . . . . . . . . . . . . . . . . . . Exploration | -11 -10 -10 -9 -9 -9 -8 -8 -8 -8 -8 -7 -7 -7 -7 -6 -6 -5 -5 -5 -5 -4 -4 -3 -3 -3 -3 -3 -2 -2 -2 -2 ------------- Run | Scr Mat Min Mat Min Exi Min Mat Gar Mat Gar Fac Gar Fac Gar Fac Gar Fac Gar Fac Gar Fac Gar Res Gar Res Arm Lab Res Gar Res Tes Turns Passed 23653 | 91 804 1024 1511 906 686 166 559 612 8 251 185 574 809 1061 674 1027 1488 784 539 1679 491 1475 218 387 1675 980 29 518 1286 820 336 Spaces Moved 12886 | 69 564 563 671 479 408 123 379 376 6 152 122 325 478 591 392 573 778 328 342 944 227 623 93 172 481 552 18 249 730 680 398 Core 47 | 6 . . . . . . . . . . . . . . . . . . . . . . . . 1 . . . . 36 4 Treads 5170 | . . 470 671 479 294 . . . . . . . . . . . 53 . . 252 227 623 93 172 291 225 18 249 730 323 . Legs 1894 | . . . . . 113 123 379 376 6 152 122 325 298 . . . . . . . . . . . . . . . . . . Wheels 5059 | 63 564 93 . . 1 . . . . . . . 180 591 392 573 725 328 342 692 . . . . 188 327 . . . . . Hover . | . . . . . . . . . . . . . . . . . . . . . . . . . . . . . . . . Flight 716 | . . . . . . . . . . . . . . . . . . . . . . . . . 1 . . . . 321 394 Fastest Speed 40 | 50 90 110 180 180 130 130 130 130 130 130 130 130 130 130 140 130 130 140 140 130 197 197 217 217 110 130 165 165 145 40 40 Average Speed 147 | 95 95 168 180 180 166 130 130 130 130 130 130 130 131 134 140 139 141 140 140 156 200 210 217 217 209 145 165 165 148 93 41 Slowest Speed 1400 | 100 110 180 180 180 180 130 130 130 130 130 130 130 210 140 140 140 185 140 140 200 217 217 217 217 1400 190 165 165 165 145 120 Overloaded Moves . | . . . . . . . . . . . . . . . . . . . . . . . . . . . . . . . . Propulsion Burnouts . | . . . . . . . . . . . . . . . . . . . . . . . . . . . . . . . . Robots Hopped 9 | . . . . . . . . . . . . . . . . . . . . . . . . . . . . . . 1 8 Cave-ins Triggered . | . . . . . . . . . . . . . . . . . . . . . . . . . . . . . . . . Exploration Rate (%) 41 | 5 68 88 58 98 70 28 30 62 4 44 4 59 11 74 9 78 25 48 12 93 14 78 3 40 15 43 5 11 90 25 51 Regions Visited 31 Branch Regions 7 Pre-discovered Areas . | . . . . . . . . . . . . . . . . . . . . . . . . . . . . . . . . Known Exits Taken 11 | . . . . . . . 1 . 1 . 1 . 1 . 1 . 1 . 1 . 1 . 1 . 1 . . 1 . . . Unknown Exits Taken 10 | 1 1 1 1 1 1 1 . . . . . . . . . . . . . . . . . . . 1 1 . . 1 . Scrap Searched 4 | . . 2 . 2 . . . . . . . . . . . . . . . . . . . . . . . . . . . Spaces Dug 173 | . . 6 . . . . . 41 . 10 1 29 . 8 14 . 20 . 6 . 3 . . . 24 . . 1 . . 10 Terrain Destroyed 767 | . . 6 12 9 . . . 78 . 25 31 156 7 82 62 29 36 1 7 5 3 6 . . 28 122 . 2 1 46 13 Melee 69 | . . . . . . . . . . . 1 . . . 14 . 20 . 6 . 3 . . . 24 . . 1 . . . Projectile 35 | . . . . . . . . . . . . 1 . 1 1 2 9 1 1 1 . . . . 4 6 . 1 1 3 3 AOE 663 | . . 6 12 9 . . . 78 . 25 30 155 7 81 47 27 7 . . 4 . 6 . . . 116 . . . 43 10 Actions | -11 -10 -10 -9 -9 -9 -8 -8 -8 -8 -8 -7 -7 -7 -7 -6 -6 -5 -5 -5 -5 -4 -4 -3 -3 -3 -3 -3 -2 -2 -2 -2 --------- Run | Scr Mat Min Mat Min Exi Min Mat Gar Mat Gar Fac Gar Fac Gar Fac Gar Fac Gar Fac Gar Fac Gar Res Gar Res Arm Lab Res Gar Res Tes Total 16116 | 86 733 616 862 509 417 126 425 442 6 192 141 422 603 779 477 727 1048 570 380 1102 252 761 108 185 966 675 18 332 854 800 502 Wait 959 | . 72 27 53 16 . . 20 2 . 18 . 22 30 . 22 6 56 127 1 38 1 62 11 . 275 2 . 20 26 23 29 Move 12837 | 68 563 562 670 478 407 122 379 374 6 150 122 323 478 589 392 571 778 326 342 942 227 621 93 170 480 551 17 249 728 677 382 Hop 9 | . . . . . . . . . . . . . . . . . . . . . . . . . . . . . . 1 8 Pick Up 222 | 8 20 6 23 1 2 1 4 5 . . 5 . 13 23 8 11 26 7 1 19 2 7 1 2 8 14 . 2 . 3 . Fast Attach 94 | 7 . . 4 . 2 . 2 . . . . 1 6 1 6 2 3 1 . 2 . 2 . 1 9 5 . 6 12 11 11 Attach 115 | . 2 2 5 . 1 . 3 . . . 2 2 5 3 3 3 14 1 1 5 3 6 2 2 20 7 . 3 8 7 5 Detach 25 | . . . . . 1 . . . . . . 1 . . . 2 2 1 . 1 . 2 . . 2 . 1 1 1 5 5 Swap 229 | . 7 3 10 3 . . . 16 . 4 3 10 5 20 8 13 34 16 4 19 6 8 1 1 15 11 . . 4 8 . Drop 165 | 1 14 2 25 2 4 1 4 5 . . 4 . 11 9 4 9 18 8 . 10 . . . 1 15 5 . 2 1 6 4 Fire 1041 | 2 55 14 72 9 . 2 13 32 . 10 4 43 29 32 20 44 92 57 24 43 10 46 . 8 70 78 . 43 72 59 58 Melee 190 | . . . . . . . . 8 . . 1 . 5 24 14 10 22 10 7 5 3 3 . . 70 2 . 6 . . . Ram 2 | . . . . . . . . . . . . . . . . . . . . . . . . . 2 . . . . . . Kick 21 | . . . . . . . . . . . . . 21 . . . . . . . . . . . . . . . . . . Crush . | . . . . . . . . . . . . . . . . . . . . . . . . . . . . . . . . Escape Stasis 206 | . . . . . . . . . . 10 . 20 . 78 . 56 2 16 . 18 . 4 . . . . . . 2 . . Rewire . | . . . . . . . . . . . . . . . . . . . . . . . . . . . . . . . . Trap . | . . . . . . . . . . . . . . . . . . . . . . . . . . . . . . . . Miscellaneous 1 | . . . . . . . . . . . . . . . . . 1 . . . . . . . . . . . . . . Route ------- -11/Scrapyard -10/Materials (discovered 3 exits: *Mat x2 / [*Min]) -10/Mines -9/Materials (discovered 2 exits: *Mat / *Min) -9/Mines (discovered 3 exits: *Mat x2 / *Exi) -9/Exiles (discovered 2 exits: [*Min x2]) -8/Mines -8/Materials -8/Garrison (discovered 2 exits: *Mat x2) -8/Materials -8/Garrison -7/Factory (discovered 2 exits: *Fac / Gar) -7/Garrison (discovered 2 exits: *Fac x2) -7/Factory (discovered 3 exits: *Fac / [*Low] / Gar) -7/Garrison (discovered 3 exits: *Fac x3) -6/Factory (discovered 5 exits: Low x2 / Ext x2 / Gar) -6/Garrison (discovered 3 exits: *Fac x3) -5/Factory (discovered 2 exits: [*Upp] / Gar) -5/Garrison -5/Factory (discovered 2 exits: *Fac / Gar) -5/Garrison (discovered 2 exits: *Fac x2) -4/Factory (discovered 2 exits: [*Upp] / Gar) -4/Garrison (discovered 2 exits: *Res x2) -3/Research -3/Garrison -3/Research (discovered 3 exits: *Arm / Qua x2) -3/Armory -3/Lab -2/Research -2/Garrison (discovered 3 exits: *Res x3) -2/Research -2/Testing (discovered 1 exit: [*Acc]) History --------- Turn | Location | Event 16 | -11/Scrapyard | Discovered new exit (range 16) 92 | -11/Scrapyard | Entered Materials 324 | -10/Materials | Build established: Mutant 365 | -10/Materials | Discovered new exit (range 16) 546 | -10/Materials | Discovered new exit (range 12) 709 | -10/Materials | Discovered new exit (range 13) 896 | -10/Materials | Entered Mines 1181 | -10/Mines | Joined a pair of Derelicts in attacking an 0b10 outpost 1413 | -10/Mines | Learned Materials stockpile data 1727 | -10/Mines | Discovered new exit (range 15) 1920 | -10/Mines | Entered Materials 1920 | -9/Materials | Evolved 2 slots: Utility x2 2224 | -9/Materials | Build established: Hauler-Mutant 2235 | -9/Materials | Discovered new exit (range 12) 2581 | -9/Materials | Discovered new exit (range 5) 3431 | -9/Materials | Entered Mines 3801 | -9/Mines | Escorted by a lone wolf Derelict 4010 | -9/Mines | Discovered new exit (range 9) 4168 | -9/Mines | Assisted by bots powering up and referring to "LRC-V3" 4197 | -9/Mines | Discovered new exit (range 13) 4239 | -9/Mines | Met a Derelict testing a Signal Generator 4320 | -9/Mines | Deemed a non-threat by the Exiles lab entrance 4322 | -9/Mines | Discovered new exit (range 5) 4337 | -9/Mines | Entered Exiles 4337 | -9/Exiles | Accompanied by 5 allies 4364 | -9/Exiles | Discovered new exit (range 15) 4382 | -9/Exiles | Met 8R-AWN 4438 | -9/Exiles | Met EX-HEX 4564 | -9/Exiles | Met EX-DEC 4784 | -9/Exiles | Met EX-BIN 4809 | -9/Exiles | Aligned with FarCom system 4811 | -9/Exiles | Given EX-Vault access code 4856 | -9/Exiles | Opened EX-Vault 4870 | -9/Exiles | Found Potential Leg 4874 | -9/Exiles | Found Potential Leg 4877 | -9/Exiles | Found Superbattery 4883 | -9/Exiles | Found PSU Rigger 4911 | -9/Exiles | Warned to stay clear of 0b10 Research branches 4921 | -9/Exiles | Exiles lab attacked by MAIN.C 5002 | -9/Exiles | Discovered new exit (range 14) 5023 | -9/Exiles | Stole three prototypes: Potential Leg, Superbattery, PSU Rigger 5023 | -9/Exiles | Entered Mines 5023 | -8/Mines | Accompanied by 4 allies 5134 | -8/Mines | Discovered new exit (range 7) 5189 | -8/Mines | Entered Materials 5189 | -8/Materials | Accompanied by 3 allies 5189 | -8/Materials | Evolved 2 slots: Utility x2 5748 | -8/Materials | Identified exit to Garrison 5748 | -8/Materials | Entered Garrison 5755 | -8/Garrison | Triggered checkpoint 5796 | -8/Garrison | Garrison Relay disabled 5859 | -8/Garrison | Triggered checkpoint 5888 | -8/Garrison | Triggered checkpoint 5909 | -8/Garrison | Garrison Relay disabled 5967 | -8/Garrison | Triggered checkpoint 5976 | -8/Garrison | Triggered checkpoint 6014 | -8/Garrison | Destroyed 8 combat bots 6152 | -8/Garrison | Triggered checkpoint 6180 | -8/Garrison | Discovered new exit (range 14) 6304 | -8/Garrison | Triggered checkpoint 6336 | -8/Garrison | Discovered new exit (range 9) 6353 | -8/Garrison | Installed Relay Interface Framework 6360 | -8/Garrison | Entered Materials 6368 | -8/Materials | Identified exit to Garrison 6368 | -8/Materials | Entered Garrison 6375 | -8/Garrison | Expanded RIF knowledge: Coupler Efficiency 6437 | -8/Garrison | Triggered checkpoint 6534 | -8/Garrison | Triggered checkpoint 6539 | -8/Garrison | Triggered checkpoint 6604 | -8/Garrison | Discovered new exit (range 10) 6619 | -8/Garrison | Entered Factory 6619 | -7/Factory | Evolved 2 slots: Utility x2 6621 | -7/Factory | FarCom data flow suspended 6793 | -7/Factory | Discovered new exit (range 11) 6804 | -7/Factory | Identified exit to Garrison 6804 | -7/Factory | Entered Garrison 6890 | -7/Garrison | Triggered checkpoint 6904 | -7/Garrison | Triggered checkpoint 6965 | -7/Garrison | Lost 5 parts (1p3u1w) 7091 | -7/Garrison | Triggered checkpoint 7123 | -7/Garrison | Destroyed 8 combat bots 7151 | -7/Garrison | Discovered new exit (range 8) 7239 | -7/Garrison | Discovered new exit (range 15) 7270 | -7/Garrison | Expanded RIF knowledge: Robot Detection 7378 | -7/Garrison | Entered Factory 7465 | -7/Factory | Discovered new exit (range 15) 7539 | -7/Factory | Discovered new exit (range 16) 8187 | -7/Factory | Identified exit to Garrison 8187 | -7/Factory | Entered Garrison 8227 | -7/Garrison | Triggered checkpoint 8268 | -7/Garrison | Triggered checkpoint 8272 | -7/Garrison | Triggered checkpoint 8365 | -7/Garrison | Triggered checkpoint 8540 | -7/Garrison | Discovered new exit (range 15) 8569 | -7/Garrison | Expanded RIF knowledge: Coupler Efficiency 8603 | -7/Garrison | Triggered checkpoint 8649 | -7/Garrison | Garrison Relay disabled 8850 | -7/Garrison | Triggered checkpoint 8873 | -7/Garrison | Garrison Relay disabled 8923 | -7/Garrison | Discovered new exit (range 10) 9085 | -7/Garrison | Discovered new exit (range 8) 9164 | -7/Garrison | Triggered checkpoint 9177 | -7/Garrison | Garrison Relay disabled 9200 | -7/Garrison | Build established: Botlord-Mutant 9248 | -7/Garrison | Entered Factory 9248 | -6/Factory | Accompanied by 2 allies 9248 | -6/Factory | Evolved 2 slots: Utility x2 9310 | -6/Factory | Repaired Arm. Huge Wheel 9387 | -6/Factory | Identified exit to Lower Caves 9387 | -6/Factory | Identified exit to Extension 9598 | -6/Factory | First assault squad dispatched 9922 | -6/Factory | Identified exit to Garrison 9922 | -6/Factory | Entered Garrison 9922 | -6/Garrison | Accompanied by 1 ally 9957 | -6/Garrison | Triggered checkpoint 9986 | -6/Garrison | Garrison Relay disabled 10097 | -6/Garrison | Triggered checkpoint 10188 | -6/Garrison | Triggered checkpoint 10322 | -6/Garrison | Discovered new exit (range 11) 10470 | -6/Garrison | Discovered new exit (range 8) 10489 | -6/Garrison | Expanded RIF knowledge: Program Shield 10542 | -6/Garrison | Triggered checkpoint 10567 | -6/Garrison | Garrison Relay disabled 10641 | -6/Garrison | Triggered checkpoint 10743 | -6/Garrison | Discovered new exit (range 14) 10783 | -6/Garrison | Triggered checkpoint 10813 | -6/Garrison | Garrison Relay disabled 10949 | -6/Garrison | Entered Factory 10949 | -5/Factory | Accompanied by 3 allies 10949 | -5/Factory | Evolved 2 slots: Utility x2 11627 | -5/Factory | Lost 3 parts (1p1u1w) 11763 | -5/Factory | Fabricated Imp. Remote Force Field (x2) 12060 | -5/Factory | Discovered new exit (range 32) 12437 | -5/Factory | Identified exit to Garrison 12437 | -5/Factory | Entered Garrison 12437 | -5/Garrison | Accompanied by 2 allies 12444 | -5/Garrison | Expanded RIF knowledge: Patrol Navigation 12515 | -5/Garrison | Triggered checkpoint 12533 | -5/Garrison | Triggered checkpoint 12557 | -5/Garrison | Destroyed B-75 Beast 12725 | -5/Garrison | Triggered checkpoint 12769 | -5/Garrison | Garrison Relay disabled 13082 | -5/Garrison | Triggered checkpoint 13122 | -5/Garrison | Garrison Relay disabled 13199 | -5/Garrison | Discovered new exit (range 9) 13221 | -5/Garrison | Entered Factory 13221 | -5/Factory | Accompanied by 1 ally 13642 | -5/Factory | Discovered new exit (range 20) 13760 | -5/Factory | Identified exit to Garrison 13760 | -5/Factory | Entered Garrison 13760 | -5/Garrison | Accompanied by 3 allies 13836 | -5/Garrison | Triggered checkpoint 13842 | -5/Garrison | Triggered checkpoint 13848 | -5/Garrison | Garrison Relay disabled 14234 | -5/Garrison | Triggered checkpoint 14305 | -5/Garrison | Discovered new exit (range 13) 14328 | -5/Garrison | Expanded RIF knowledge: Structural Interface 14436 | -5/Garrison | Triggered checkpoint 14476 | -5/Garrison | Triggered checkpoint 14490 | -5/Garrison | Garrison Relay disabled 14714 | -5/Garrison | Triggered checkpoint 14826 | -5/Garrison | Triggered checkpoint 14905 | -5/Garrison | Garrison Relay disabled 14967 | -5/Garrison | Discovered new exit (range 19) 15172 | -5/Garrison | Triggered checkpoint 15178 | -5/Garrison | Garrison Relay disabled 15439 | -5/Garrison | Entered Factory 15439 | -4/Factory | Accompanied by 4 allies 15439 | -4/Factory | Evolved 2 slots: Utility x2 15520 | -4/Factory | Spotted B-86 Titan 15737 | -4/Factory | Discovered new exit (range 22) 15737 | -4/Factory | Spotted B-86 Titan 15930 | -4/Factory | Identified exit to Garrison 15930 | -4/Factory | Entered Garrison 15940 | -4/Garrison | Expanded RIF knowledge: Crosswire 16012 | -4/Garrison | Triggered checkpoint 16058 | -4/Garrison | Garrison Relay disabled 16407 | -4/Garrison | Triggered checkpoint 16422 | -4/Garrison | Triggered checkpoint 16422 | -4/Garrison | Spotted B-86 Titan 16436 | -4/Garrison | Triggered checkpoint 16437 | -4/Garrison | Allies destroyed B-86 Titan 16560 | -4/Garrison | Triggered checkpoint 16695 | -4/Garrison | Discovered new exit (range 12) 16712 | -4/Garrison | Triggered checkpoint 16764 | -4/Garrison | Garrison Relay disabled 17080 | -4/Garrison | Discovered new exit (range 12) 17216 | -4/Garrison | Triggered checkpoint 17287 | -4/Garrison | Garrison Relay disabled 17405 | -4/Garrison | Entered Research 17405 | -3/Research | Accompanied by 9 allies 17405 | -3/Research | Evolved 2 slots: Utility x2 17616 | -3/Research | Garrison activated, responded to threat 17623 | -3/Research | Identified exit to Garrison 17623 | -3/Research | Entered Garrison 17623 | -3/Garrison | Accompanied by 10 allies 17634 | -3/Garrison | Expanded RIF knowledge: Autooverride 17702 | -3/Garrison | Triggered checkpoint 17739 | -3/Garrison | Garrison Relay disabled 17869 | -3/Garrison | Spotted B-86 Titan 17876 | -3/Garrison | Triggered checkpoint 17879 | -3/Garrison | Triggered checkpoint 17975 | -3/Garrison | Discovered new exit (range 9) 18010 | -3/Garrison | Entered Research 18010 | -3/Research | Accompanied by 11 allies 18039 | -3/Research | Identified exit to Armory 18039 | -3/Research | Identified exit to Quarantine 18659 | -3/Research | Spotted B-86 Titan 18930 | -3/Research | System corruption reached 10% 18935 | -3/Research | Lost 3 parts (1p2u) 19001 | -3/Research | Core integrity fell below 50% 19019 | -3/Research | Lost 9 parts (1p1n3u4w) 19172 | -3/Research | Found Mni. Smartbomb Launcher 19672 | -3/Research | Spotted B-86 Titan 19685 | -3/Research | Entered Armory 19700 | -3/Armory | Found Fusion Bomb Launcher 19738 | -3/Armory | System corruption reached 30% 20203 | -3/Armory | Core integrity fell below 20% 20245 | -3/Armory | Lost 12 parts (1p2n6u3w) 20587 | -3/Armory | Energy Cycler disabled 20647 | -3/Armory | Discovered new exit (range 10) 20665 | -3/Armory | Entered Lab 20665 | -3/Lab | Accompanied by 2 allies 20665 | -3/Lab | Discovered new exit (range 9) 20685 | -3/Lab | Unable to decrypt terminal 20687 | -3/Lab | Unable to decrypt terminal 20694 | -3/Lab | Entered Research 20694 | -2/Research | Accompanied by 2 allies 20694 | -2/Research | Evolved 2 slots: Utility x2 20727 | -2/Research | Found Quantum Capacitor 20959 | -2/Research | P-80 Master assimilated allied Assassin 8b 20999 | -2/Research | System corruption reached 10% 21032 | -2/Research | Lost 4 parts (1p2u1w) 21212 | -2/Research | Identified exit to Garrison 21212 | -2/Research | Entered Garrison 21247 | -2/Garrison | Garrison Relay disabled 21278 | -2/Garrison | Triggered checkpoint 21370 | -2/Garrison | Spotted B-90 Cyclops 21407 | -2/Garrison | Triggered checkpoint 21442 | -2/Garrison | Triggered checkpoint 21474 | -2/Garrison | Destroyed B-90 Cyclops 21489 | -2/Garrison | Lost 3 parts (2u1w) 21524 | -2/Garrison | Triggered checkpoint 21573 | -2/Garrison | Lost 4 parts (1n1u2w) 21687 | -2/Garrison | Discovered new exit (range 9) 21707 | -2/Garrison | Expanded RIF knowledge: Alert ID Control 21774 | -2/Garrison | Triggered checkpoint 21810 | -2/Garrison | Lost 3 parts (1p2u) 21836 | -2/Garrison | Triggered checkpoint 21966 | -2/Garrison | Triggered checkpoint 21993 | -2/Garrison | Garrison Relay disabled 22064 | -2/Garrison | Discovered new exit (range 13) 22218 | -2/Garrison | Garrison Relay disabled 22346 | -2/Garrison | Discovered new exit (range 7) 22384 | -2/Garrison | Triggered checkpoint 22403 | -2/Garrison | Garrison Relay disabled 22498 | -2/Garrison | Entered Research 22498 | -2/Research | Accompanied by 4 allies 22566 | -2/Research | Found Prototype Processor 22566 | -2/Research | Identified Exp. Armor Integrity Analyzer 22730 | -2/Research | Spotted B-90 Cyclops 22868 | -2/Research | Lost 5 parts (1p1n2u1w) 23090 | -2/Research | Core integrity fell below 50% 23162 | -2/Research | Lost 9 parts (1p1n4u3w) 23272 | -2/Research | Discovered new exit (range 21) 23318 | -2/Research | Entered Testing 23360 | -2/Testing | Found Prototype Launcher 23360 | -2/Testing | Identified Z-bomb Delivery System 23406 | -2/Testing | Found Prototype Hackware 23406 | -2/Testing | Identified Ghost Barrier 23433 | -2/Testing | Discovered new exit (range 21) 23443 | -2/Testing | Found Prototype Processor 23443 | -2/Testing | Identified Exp. Melee Analysis Suite 23573 | -2/Testing | Core integrity fell below 20% 23573 | -2/Testing | Found Prototype Energy Cannon 23573 | -2/Testing | Identified Cld. Nova Cannon 23629 | -2/Testing | Lost 4 parts (1p2u1w) 23654 | -2/Testing | Destroyed by P-80 Master with Gamma Rifle Last Messages --------------- 23598_ Ghost Barrier destroyed. 23599_ U-05 Engineer lays Concrete. 23601_ U-05 Engineer builds a Wall. 23603_ U-05 Engineer lays Concrete. 23604_ U-05 Engineer builds a Wall. 23606_ R-10 Processor collects Phase Gun. 23606_ Destroyed Hvy. Laser. 23607_ G-73 Enforcer heat spikes uncontrollably. 23607_ G-73 Enforcer overheating. 23614_ U-05 Engineer builds a Wall. 23618_ System corrupted: Slammed into ceiling. 23622_ System corrupted: Matter fused (-6). 23637_ System corrupted: Impulse Thruster Array rejected. 23637_ Acquired Impulse Thruster Array. 23639_ U-05 Engineer suffers critical hit. 23639_ U-05 Engineer destroyed. 23640_ K-01 Serf collects debris. 23644_ R-10 Processor collects Unknown Wheel. 23650_ Acquired Lgt. Quantum Reactor. 23653_ Catalytron disabled. Map ----- +----------------------------------------------------+ | ?????????????????????????????????????????????# | | ?????????????????????????????????????????????##### | | ?????????????????????????????????????????????????? | | ?????????????????????????????????????????????????? | | ?????????????????????????????????????????????????? | | ?????????????????????????????????????????????????? | | ?????????????????????????????????????????????????? | | ?????????????????????????????????????????????????? | | ?????????????????????????????????????????????????? | | ?????????????????????????????????????????????????? | | ?????????????????????????????????????????????????? | | ?????????????????????????????????????????????????? | | ?????????????????????????????????????????????????? | | ?????????????????????????????????????????????????? | | ?????????????????????????????????????????????????? | | ?????????????????????????????????????????????????? | | ?????????????????????????????????#+#+##??????????? | | ?????????????????????????????????# +??????????? | | ?????????????????????????????????# #??????????? | | ?????????????????????????????????# #??????????? | | ?????????????????????????????????# +??????????? | | ?????????????????????????????????# #??????????? | | ????????????????????????########## #??????????? | | ????????????????????????# # #??????????? | | ????????????????????????# """ # #??????????? | | ????????????????????????#@ """ # #??????????? | | ????????????????????????# "" # #??????????? | | ????????????????????????# pp + #??????????? | | ????????????????????????# "" # #??????????? | | ????????????????????????# """ # #??????????? | | ????????????????????????# """ # ############ | | ????????????????????????#= # g | | ??????????????????????############ | | ??????????????????????# | | ??????????????????????# | | ??????????????????????# ##########/########### ## | | ?????????????????????????????# %! #???# #? | | ?????????????????????????????# = #???# #? | | ?????????????????????????????# """ #???# #? | | ???????????????????##+# ##### """ #???# #? | | ????????????????? + "" #???# #? | | ????????????????? ##### """ #???# #? | | ??????????????????##?????????# " " #???# #? | | ?????????????????????????????# "" #???# ## | | ?????????????????????????????# " """ #???# | | ?????????????????????????????# "" " #???# | | ?????????????????????????????# " #???# | | ?????????????????????????????# #???#### | | ?????????????????????????????##############??????? | | ????????????????????????????????????## #??????? | +----------------------------------------------------+ Best States ------------- Heat Dissipation 68 Energy Generation 25 Energy Capacity 2340 Matter Stores 800 Matter Capacity 800 Sight Range 28 Terrain Scan Density 10 Jamming Range 16 Armor Coverage 600 Resistance: KI 25 Resistance: EM 25 Evasion (%) 62 Targeting Accuracy 8 Melee Accuracy 12 Core Analysis 10 Armor Integrity Analysis 90 Recoil Reduction 2 Matter Filtering 30 Energy Filtering 50 Defensive Hacking 20 Item Schematics ----------------- Hcp. Storage Unit | -9/Materials | Hacked Lrg. Storage Unit | -9/Materials | Hacked Robot Schematics ------------------ None Fabricated ------------ Imp. Remote Force Field | x2 | -5/Factory | Preloaded Alien Tech Used ----------------- None Achievements -------------- None Challenges ------------ None Game ------ Seed LightningTransmissionHammer Manual? 0 Play Time 03:31:33 Cumulative 885.2 hours Start 2019.12.31 @ 02:42:40 End 2019.12.31 @ 06:16:26 Sessions 1 Manual Loads 0 Difficulty Rogue Special Mode None Game No. 345 Rogue 345 Adventurer 0 Explorer 0 Win Type - Total 21 Types 11/1/7/0/0/0/2 Lore% 95 Gallery% 96 Achievement% 81 Wizard Run 0 Options --------- ASCII 0 Keyboard 0 Movement Vi Keybinds 0 Fullscreen 0 Font 12/Crisp Map View 76x50 Tactical HUD 1 Map Filters NONE Filters NONE Steam X RUN: 95e51ad8-8daf-4d26-8879-a13662df1a45